fUSD/lending_fUSD_20260307
["ID","MTS","AMOUNT","RATE_DAILY","PERIOD"]
[407877057,1772869940405,-3405.71,0.00047258,120]
[407877058,1772869940434,-3405.71,0.00047258,120]
[407877059,1772869940462,-3405.71,0.00047258,120]
[407877060,1772869940488,-3405.71,0.00047258,120]
[407877061,1772869940518,-3405.71,0.00047258,120]
[407877062,1772869940547,-3405.71,0.00047258,120]
[407877063,1772869940575,-3405.71,0.00047258,120]
[407877064,1772869940602,-3405.71,0.00047258,120]
[407877065,1772869940629,-3405.71,0.00047258,120]
[407877066,1772869940656,-3405.71,0.00047258,120]
[407877067,1772869940683,-3405.71,0.00047258,120]
[407877068,1772869940709,-1000.0,0.00047258,120]
[407877069,1772869940737,-3405.71,0.00047258,120]
[407877070,1772869940763,-3405.71,0.00047258,120]
[407877071,1772869940794,-3405.71,0.00047258,120]
[407877072,1772869940821,-3405.71,0.00047258,120]
[407877073,1772869940848,-3405.71,0.00047258,120]
[407877074,1772869940874,-3405.71,0.00047258,120]
[407877075,1772869940915,-3405.71,0.00047258,120]
[407877076,1772869940946,-3405.71,0.00047258,120]
[407877077,1772869940974,-3405.71,0.00047258,120]
[407877078,1772869941004,-3405.71,0.00047258,120]
[407877079,1772869941046,-3405.71,0.00047258,120]
[407877080,1772869941077,-3405.71,0.00047258,120]
[407877081,1772869941106,-3405.83,0.00047258,120]
[407877082,1772869941133,-1000.0,0.00047258,120]
[407877083,1772869941159,-568.21092958,0.00047258,60]
[407877084,1772869941184,-1000.0,0.00047258,60]
[407877085,1772869941210,-1000.0,0.00047258,120]
[407877086,1772869941238,-999.91999969,0.00047258,30]
[407877087,1772869941266,-700.0,0.00047258,120]
[407877088,1772869941292,-156.00509891,0.00047258,35]
[407877089,1772869941318,-3643.0,0.00047258,30]
[407877090,1772869941364,-714.04152568,0.00047258,120]
[407877091,1772869941401,-394.84966951,0.00047258,120]
[407877092,1772869941430,-613.54997126,0.00047258,120]
[407877093,1772869941460,-248.87337907,0.00047258,30]
[407877094,1772869941490,-1351.95832991,0.00047258,30]
[407877095,1772869941906,-336.43688929,0.00047258,30]
[407877096,1772869941935,-548.68941508,0.00047258,30]
[407877097,1772869941962,-410.2367352,0.00047258,30]
[407877098,1772869941989,-953.50030084,0.00047258,91]
[407877099,1772869942017,-1338.54590716,0.00047258,60]
[407877100,1772869942045,-945.14219291,0.00047258,30]
[407877101,1772869942077,-329.38877977,0.00047258,30]
[407877102,1772869942103,-447.06326254,0.00047258,120]
[407877103,1772869942128,-1185.61880289,0.00047258,120]
[407877104,1772869942153,-605.39203819,0.00047258,120]
[407877105,1772869942177,-797.3965552,0.00047258,30]
[407877106,1772869942205,-229.0,0.00047258,30]
[407877107,1772869942231,-1053.43081077,0.00047258,30]
[407877108,1772869942256,-462.72966011,0.00047258,120]
[407877109,1772869942287,-1294.97385861,0.00047258,30]
[407877110,1772869942315,-211.26836067,0.00047258,120]
[407877111,1772869942342,-2046.82539463,0.00047258,30]
[407877112,1772869942368,-195.57677515,0.00047258,120]
[407877113,1772869942391,-483.5671724,0.00047258,30]
[407877114,1772869942415,-1085.67897947,0.00047258,120]
[407877115,1772869942440,-940.48343733,0.00047258,120]
[407877116,1772869942464,-775.69602932,0.00047258,120]
[407877117,1772869942489,-1094.10361228,0.00047258,120]
[407877118,1772869942517,-928.86725323,0.00047258,120]
[407877119,1772869942544,-925.55222357,0.00047258,30]
[407877120,1772869942569,-724.20067254,0.00047258,30]
[407877121,1772869942596,-1006.97039094,0.00047258,30]
[407877122,1772869942619,-934.59794285,0.00047258,30]
[407877123,1772869942643,-192.59006489,0.00047258,120]
[407877124,1772869942667,-386.06935488,0.00047258,30]
[407877125,1772869942691,-263.03519978,0.00047258,90]
[407877126,1772869942714,-636.80578392,0.00047258,120]
[407877127,1772869942738,-173.46558038,0.00047258,120]
[407877128,1772869942762,-1007.14999876,0.00047258,30]
[407877129,1772869942787,-1072.26318879,0.00047258,60]
[407877130,1772869942811,-217.37904529,0.00047258,120]
[407877131,1772869942836,-381.36432003,0.00047258,120]
[407877132,1772869942860,-369.60429323,0.00047258,30]
[407877133,1772869942885,-223.48163604,0.00047258,30]
[407877134,1772869942912,-483.8155821,0.00047258,60]
[407877135,1772869942936,-1040.77091829,0.00047258,30]
[407877136,1772869942961,-841.24221071,0.00047258,120]
[407877137,1772869943001,-194.7660854,0.00047258,120]
[407877138,1772869943030,-663.59965761,0.00047258,120]
[407877139,1772869943056,-1042.42667211,0.00047258,120]
[407877140,1772869943082,-156.54295114,0.00047258,120]
[407877141,1772869943107,-977.03649633,0.00047258,120]
[407877142,1772869943135,-378.14570206,0.00047258,30]
[407877143,1772869943163,-394.59089809,0.00047258,30]
[407877144,1772869943188,-506.14641292,0.00047258,120]
[407877145,1772869943214,-779.00011137,0.00047258,120]
[407877146,1772869943239,-727.95459287,0.00047258,30]
[407877147,1772869943266,-444.83960702,0.00047258,120]
[407877148,1772869943292,-570.68798452,0.00047258,120]
[407877149,1772869943318,-958.16634164,0.00047258,30]
[407877150,1772869943343,-620.01167722,0.00047258,120]
[407877151,1772869943368,-1095.5341423,0.00047258,30]
[407877152,1772869943394,-1185.20804676,0.00047258,120]
[407877153,1772869943419,-217.10431962,0.00047258,120]
[407877154,1772869943445,-1000.24487267,0.00047258,120]
[407877155,1772869943471,-402.02451149,0.00047258,120]
[407877156,1772869943497,-177.08030249,0.00047258,120]
[407877157,1772869943526,-562.4163572,0.00047258,120]
[407877158,1772869943552,-530.22899074,0.00047258,120]
[407877159,1772869943579,-258.42704431,0.00047258,120]
[407877160,1772869943605,-476.76233014,0.00047258,30]
[407877161,1772869943629,-928.53102512,0.00047258,120]
[407877162,1772869943654,-997.0,0.00047258,30]
[407877163,1772869943680,-267.61940045,0.00047258,120]
[407877164,1772869943705,-255.64521526,0.00047258,30]
[407877165,1772869943729,-409.23611913,0.00047258,60]
[407877166,1772869943755,-177.27615136,0.00047258,120]
[407877167,1772869943779,-153.02456216,0.00047258,120]
[407877168,1772869943804,-772.76017704,0.00047258,30]
[407877169,1772869943836,-418.68244061,0.00047258,120]
[407877170,1772869943863,-169.75021164,0.00047258,30]
[407877171,1772869943888,-831.02982569,0.00047258,120]
[407877172,1772869943914,-840.22479996,0.00047258,120]
[407877173,1772869943939,-611.84332122,0.00047258,30]
[407877174,1772869943965,-956.23920092,0.00047258,30]
[407877175,1772869943990,-1276.31598722,0.00047258,30]
[407877176,1772869944016,-279.48349249,0.00047258,120]
[407877177,1772869944043,-691.42691442,0.00047258,120]
[407877178,1772869944070,-1105.99995083,0.00047258,120]
[407877179,1772869944097,-245.2974408,0.00047258,120]
[407877180,1772869944123,-610.75219166,0.00047258,120]
[407877181,1772869944149,-151.12094299,0.00047258,60]
[407877182,1772869944175,-270.3642315,0.00047258,120]
[407877183,1772869944202,-1001.70757151,0.00047258,120]
[407877184,1772869944228,-217.95024639,0.00047258,66]
[407877185,1772869944260,-251.81122291,0.00047258,120]
[407877186,1772869944288,-215.19599029,0.00047258,30]
[407877187,1772869944314,-943.54379047,0.00047258,30]
[407877188,1772869944341,-782.37795383,0.00047258,120]
[407877189,1772869944368,-437.93216648,0.00047258,30]
[407877190,1772869944393,-365.568479,0.00047258,30]
[407877191,1772869944419,-286.80176859,0.00047258,30]
[407877192,1772869944445,-441.75981765,0.00047258,30]
[407877193,1772869944471,-863.46312837,0.00047258,120]
[407877194,1772869944502,-5035.84296735,0.00047258,30]
[407877195,1772869944528,-399.82481962,0.00047258,30]
[407877196,1772869944555,-615.46793473,0.00047258,120]
[407877197,1772869944582,-372.86840289,0.00047258,120]
[407877198,1772869944607,-2883.54075594,0.00047258,30]
[407877199,1772869945030,-587.92402644,0.00047258,120]
[407877200,1772869945056,-230.96016828,0.00047258,120]
[407877201,1772869945082,-960.01355674,0.00047258,30]
[407877202,1772869945108,-485.3718093,0.00047258,120]
[407877203,1772869945158,-378.41025968,0.00047258,30]
[407877204,1772869945193,-208.54693739,0.00047258,120]
[407877205,1772869945220,-756.0,0.00047258,120]
[407877206,1772869945244,-366.90442384,0.00047258,120]
[407877207,1772869945268,-1083.45446872,0.00047258,120]
[407877208,1772869945293,-198.28195244,0.00047258,120]
[407877209,1772869945318,-523.20567201,0.00047258,120]
[407877210,1772869945342,-182.67618453,0.00047258,120]
[407877211,1772869945367,-845.78489672,0.00047258,120]
[407877212,1772869945395,-1355.04495028,0.00047258,30]
[407877213,1772869945419,-558.43499798,0.00047258,120]
[407877214,1772869945444,-588.19303737,0.00047258,120]
[407877215,1772869945468,-655.9300082,0.00047258,120]
[407877216,1772869945492,-4957.15231015,0.00047258,120]
[407877217,1772869945520,-3156.22927587,0.00047258,30]
[407877218,1772869945544,-366.06695112,0.00047258,120]
[407877219,1772869945569,-1120.27555364,0.00047258,120]
[407877220,1772869945594,-1068.42793184,0.00047258,120]
[407877221,1772869945618,-198.99859583,0.00047258,120]
[407877222,1772869945642,-601.76116325,0.00047258,120]
[407877223,1772869945666,-771.50433977,0.00047258,30]
[407877224,1772869945690,-889.22375607,0.00047258,120]
[407877225,1772869945713,-275.30707951,0.00047258,120]
[407877226,1772869945736,-1214.97652052,0.00047258,30]
[407877227,1772869945761,-597.02623407,0.00047258,120]
[407877228,1772869945785,-394.99404844,0.00047258,120]
[407877229,1772869945817,-277.64642972,0.00047258,120]
[407877230,1772869945867,-487.4910338,0.00047258,60]
[407877231,1772869945896,-436.35738677,0.00047258,120]
[407877232,1772869945922,-1114.04179597,0.00047258,120]
[407877233,1772869945951,-483.34090831,0.00047258,120]
[407877234,1772869945979,-1218.81450773,0.00047258,120]
[407877235,1772869946006,-500.0,0.00047258,120]
[407877236,1772869946034,-615.73694114,0.00047258,30]
[407877237,1772869946061,-499.67395077,0.00047258,30]
[407877238,1772869946089,-802.85833846,0.00047258,120]
[407877239,1772869946116,-1182.40718703,0.00047258,120]
[407877240,1772869946147,-601.12677641,0.00047258,120]
[407877241,1772869946176,-647.80907087,0.00047258,120]
[407877242,1772869946204,-850.49422344,0.00047258,30]
[407877243,1772869946231,-188.51504789,0.00047258,30]
[407877244,1772869946259,-329.44584629,0.00047258,120]
[407877245,1772869946290,-714.84105308,0.00047258,120]
[407877246,1772869946317,-232.25002096,0.00047258,120]
[407877247,1772869946346,-202.4885699,0.00047258,120]
[407877248,1772869946373,-1000.0,0.00047258,30]
[407877249,1772869946401,-487.06627877,0.00047258,120]
[407877250,1772869946430,-509.27920672,0.00047258,120]
[407877251,1772869946460,-157.50676559,0.00047258,120]
[407877252,1772869946489,-954.16070251,0.00047258,30]
[407877253,1772869946526,-172.71544598,0.00047258,60]
[407877254,1772869946558,-191.30257368,0.00047258,60]
[407877255,1772869946586,-211.53306109,0.00047258,30]
[407877256,1772869946613,-2302.1073392,0.00047258,60]
[407877257,1772869946640,-933.31374155,0.00047258,120]
[407877258,1772869946667,-3255.37,0.00047258,120]
[407877259,1772869946695,-3255.37,0.00047258,120]
[407877260,1772869946722,-3255.37,0.00047258,120]
[407877261,1772869946748,-3255.37,0.00047258,120]
[407877262,1772869946775,-3255.37,0.00047258,120]
[407877263,1772869946802,-3255.37,0.00047258,120]
[407877264,1772869946828,-3255.37,0.00047258,120]
[407877265,1772869946855,-3255.37,0.00047258,120]
[407877266,1772869946885,-3255.37,0.00047258,120]
[407877267,1772869946912,-3255.37,0.00047258,120]
[407877268,1772869946939,-3255.37,0.00047258,120]
[407877269,1772869946976,-3255.37,0.00047258,120]
[407877270,1772869947006,-3255.37,0.00047258,120]
[407877271,1772869947034,-3255.37,0.00047258,120]
[407877272,1772869947063,-3255.37,0.00047258,120]
[407877273,1772869947090,-3255.37,0.00047258,120]
[407877274,1772869947119,-3255.37,0.00047258,120]
[407877275,1772869947147,-3255.37,0.00047258,120]
[407877276,1772869947174,-3255.37,0.00047258,120]
[407877277,1772869947200,-3255.37,0.00047258,120]
[407877278,1772869947228,-3255.37,0.00047258,120]
[407877279,1772869947256,-3255.37,0.00047258,120]
[407877280,1772869947283,-3255.37,0.00047258,120]
[407877281,1772869947308,-3255.48656492,0.00047258,120]
[407877282,1772869947334,-1643.49499729,0.00047258,120]
[407877283,1772869947360,-378303.79829163,0.00047258,30]
[407877284,1772869947391,-12860.0,0.00047258,30]
[407877285,1772869947418,-964.03091856,0.00047258,120]
[407877286,1772869947445,-1502.0,0.00047258,120]
[407877287,1772869947471,-16667.02377293,0.00047258,120]
[407877288,1772869947501,-5000.0,0.00047258,120]
[407877289,1772869947529,-5000.0,0.00047258,120]
[407877290,1772869947556,-5000.0,0.00047258,120]
[407877291,1772869947584,-390.11422415,0.00047258,120]
[407877292,1772869947611,-5000.0,0.00047258,37]
[407877293,1772869947651,-6880.46777349,0.00047258,90]
[407877294,1772869947679,-1732.56807432,0.00047258,120]
[407877295,1772869947705,-1544.44088638,0.00047258,30]
[407877296,1772869947731,-3266.01812955,0.00047258,120]
[407877297,1772869947756,-3594.61415957,0.00047258,120]
[407877298,1772869947783,-1767.62204565,0.00047258,30]
[407877299,1772869947812,-4310.23858231,0.00047258,30]
[407877300,1772869947838,-4435.94857366,0.00047258,120]
[407877301,1772869947865,-1586.96705569,0.00047258,120]
[407877302,1772869947890,-2092.23709342,0.00047258,120]
[407877303,1772869948222,-7644.64661217,0.00047258,30]
[407877304,1772869948289,-1962.18625655,0.00047258,120]
[407877305,1772869948315,-4351.3694977,0.00047258,120]
[407877306,1772869948340,-1375.66469196,0.00047258,120]
[407877307,1772869948366,-3170.53191796,0.00047258,30]
[407877308,1772869948392,-2644.89202176,0.00047258,60]
[407877309,1772869948417,-1743.68098915,0.00047258,120]
[407877310,1772869948443,-1403.62503146,0.00047258,120]
[407877311,1772869948470,-1943.13178676,0.00047258,30]
[407877312,1772869948497,-4127.88236949,0.00047258,30]
[407877313,1772869948524,-1649.5465213,0.00047258,120]
[407877314,1772869948552,-2078.25273203,0.00047258,30]
[407877315,1772869948579,-3276.89533201,0.00047258,120]
[407877316,1772869948604,-2838.25601192,0.00047258,120]
[407877317,1772869948639,-4357.63171072,0.00047258,30]
[407877318,1772869948665,-2829.99416955,0.00047258,120]
[407877319,1772869948697,-5862.04354264,0.00047258,120]
[407877320,1772869948727,-2583.67225781,0.00047258,30]
[407877321,1772869948751,-3080.92451091,0.00047258,120]
[407877322,1772869948776,-1446.42791399,0.00047258,120]
[407877323,1772869948801,-3876.16761566,0.00047258,120]
[407877324,1772869948825,-3393.11352503,0.00047258,120]
[407877325,1772869948850,-6535.85136459,0.00047258,30]
[407877326,1772869948875,-4785.15673863,0.00047258,30]
[407877327,1772869948901,-1145.29711175,0.00047258,31]
[407877328,1772869948926,-1243.43637255,0.00047258,46]
[407877329,1772869948951,-2547.42372368,0.00047258,30]
[407877330,1772869948974,-5435.985049,0.00047258,120]
[407877331,1772869948999,-1906.15253916,0.00047258,30]
[407877332,1772869949024,-3116.83191929,0.00047258,30]
[407877333,1772869949049,-534.44896416,0.00047258,30]
[407877334,1772869949075,-1927.43093708,0.00047258,120]
[407877335,1772869949100,-2456.38318189,0.00047258,30]
[407877336,1772869949124,-3280.8746193,0.00047258,120]
[407877337,1772869949149,-1988.51036448,0.00047258,30]
[407877338,1772869949173,-3521.14005178,0.00047258,30]
[407877339,1772869949199,-7513.44669462,0.00047258,30]
[407877340,1772869949223,-1686.89135223,0.00047258,30]
[407877341,1772869949247,-2197.96445588,0.00047258,120]
[407877342,1772869949271,-1588.42654839,0.00047258,120]
[407877343,1772869949296,-1911.7459665,0.00047258,30]
[407877344,1772869949321,-1443.42179945,0.00047258,120]
[407877345,1772869949346,-5022.88002649,0.00047258,30]
[407877346,1772869949371,-1118.82409184,0.00047258,120]
[407877347,1772869949395,-1060.209,0.00047258,120]
[407877348,1772869949419,-1109.0,0.00047258,30]
[407877349,1772869949447,-1109.0,0.00047258,30]
[407877350,1772869949472,-1109.0,0.00047258,30]
[407877351,1772869949500,-1109.0,0.00047258,30]
[407877352,1772869949526,-1109.0,0.00047258,30]
[407877353,1772869949551,-1109.0,0.00047258,30]
[407877354,1772869949577,-1109.0,0.00047258,30]
[407877355,1772869949602,-1109.0,0.00047258,30]
[407877356,1772869949635,-1109.0,0.00047258,30]
[407877357,1772869949661,-1109.0,0.00047258,30]
[407877358,1772869949687,-1109.0,0.00047258,30]
[407877359,1772869949711,-1109.0,0.00047258,30]
[407877360,1772869949736,-1109.0,0.00047258,30]
[407877361,1772869949761,-1109.0,0.00047258,30]
[407877362,1772869949787,-1109.0,0.00047258,30]
[407877363,1772869949810,-905.07206191,0.00047258,30]
[407877364,1772869949834,-1109.0,0.00047258,30]
[407877365,1772869949858,-30045.29568,0.00047258,48]
[407877366,1772869949881,-500.0,0.00047258,120]
[407877367,1772869949921,-296.0,0.00047258,30]
[407877368,1772869949946,-7489.53853134,0.00047258,120]
[407877369,1772869949971,-156.58856386,0.00047258,120]
[407877370,1772869949996,-3279.0,0.00047258,120]
[407877371,1772869950024,-220.03568889,0.00047258,120]
[407877372,1772869950051,-500.0,0.00047258,120]
[407877373,1772869950078,-500.0,0.00047258,120]
[407877374,1772869950104,-458.47538501,0.00047258,120]
[407877375,1772869950130,-2389.74615221,0.00047258,120]
[407877376,1772869950156,-283.28664474,0.00047258,60]
[407877377,1772869950183,-1633.83078754,0.00047258,120]
[407877378,1772869950210,-1750.0,0.00047258,30]
[407877379,1772869950236,-1676.67,0.00047258,120]
[407877380,1772869950261,-15193.0,0.00047258,30]
[407877381,1772869950285,-271.0,0.00047258,120]
[407877382,1772869950311,-2600.0,0.00047258,120]
[407877383,1772869950336,-197.6134539,0.00047258,120]
[407877384,1772869950361,-1000.0,0.00047258,120]
[407877385,1772869950388,-1030.0,0.00047258,120]
[407877386,1772869950414,-1000.0,0.00047258,120]
[407877387,1772869950440,-1000.0,0.00047258,120]
[407877388,1772869950466,-268.10826448,0.00047258,120]
[407877389,1772869950493,-283.35475215,0.00047258,120]
[407877390,1772869950522,-4541.77048576,0.00047258,30]
[407877391,1772869950557,-2026.1064615,0.00047258,120]
[407877392,1772869950585,-2018.59629898,0.00047258,30]
[407877393,1772869950611,-1481.50227232,0.00047258,30]
[407877394,1772869950638,-183.16143439,0.00047258,30]
[407877395,1772869950665,-1456.1187885,0.00047258,120]
[407877396,1772869950692,-507.0,0.00047258,120]
[407877397,1772869950718,-454.632289,0.00047258,90]
[407877398,1772869950745,-1750.7809549,0.00047258,30]
[407877399,1772869950772,-803.41389426,0.00047258,30]
[407877400,1772869950800,-2257.18943121,0.00047258,120]
[407877401,1772869950828,-724.84,0.00047258,120]
[407877402,1772869950864,-887.83345398,0.00047258,120]
[407877403,1772869950898,-511.08,0.00047258,120]
[407877404,1772869950925,-500.0,0.00047258,30]
[407877405,1772869950951,-37721.84557215,0.00047258,120]
[407877406,1772869950978,-10988.15878368,0.00047258,120]
[407877407,1772869951004,-3559.32553108,0.00047258,120]
[407877408,1772869951429,-2594.94,0.00047258,30]
[407877409,1772869951456,-640.16,0.00047258,120]
[407877410,1772869951481,-1201.90299133,0.00047258,120]
[407877411,1772869951509,-5000.0,0.00047258,30]
[407877412,1772869951535,-5000.0,0.00047258,30]
[407877413,1772869951562,-10105.88694158,0.00047258,120]
[407877414,1772869951591,-3000.0,0.00047258,30]
[407877415,1772869951618,-5000.0,0.00047258,120]
[407877416,1772869951643,-5000.0,0.00047258,120]
[407877417,1772869951669,-5000.0,0.00047258,120]
[407877418,1772869951694,-15401.90435259,0.00047258,30]
[407877419,1772869951718,-806.18199091,0.00047258,30]
[407877420,1772869951743,-20000.0,0.00047258,120]
[407877421,1772869951767,-4416.57750408,0.00047258,30]
[407877422,1772869951792,-1000.0,0.00047258,120]
[407877423,1772869951818,-1033.61963306,0.00047258,120]
[407877424,1772869951842,-5000.0,0.00047258,120]
[407877425,1772869951873,-23316.0,0.00047258,120]
[407877426,1772869951899,-150.0,0.00047258,120]
[407877427,1772869951925,-1000.0,0.00047258,120]
[407877428,1772869951950,-6877.17008404,0.00047258,120]
[407877429,1772869951976,-18955.49298649,0.00047258,120]
[407877430,1772869952002,-1734.20891067,0.00047258,120]
[407877431,1772869952029,-10924.68930852,0.00047258,120]
[407877432,1772869952055,-10418.33144375,0.00047258,120]
[407877433,1772869952081,-16229.1964871,0.00047258,120]
[407877434,1772869952113,-150.0,0.00047258,30]
[407877435,1772869952140,-212.3,0.00047258,30]
[407877436,1772869952171,-3065.90896672,0.00047258,30]
[407877437,1772869952200,-400.0,0.00047258,30]
[407877438,1772869952227,-400.0,0.00047258,30]
[407877439,1772869952254,-400.0,0.00047258,30]
[407877440,1772869952280,-400.0,0.00047258,30]
[407877441,1772869952306,-400.0,0.00047258,30]
[407877442,1772869952332,-400.0,0.00047258,30]
[407877443,1772869952358,-400.0,0.00047258,30]
[407877444,1772869952384,-400.0,0.00047258,30]
[407877445,1772869952417,-400.0,0.00047258,30]
[407877446,1772869952444,-400.0,0.00047258,30]
[407877447,1772869952470,-400.0,0.00047258,30]
[407877448,1772869952496,-400.0,0.00047258,30]
[407877449,1772869952525,-400.0,0.00047258,30]
[407877450,1772869952555,-400.0,0.00047258,30]
[407877451,1772869952580,-400.0,0.00047258,30]
[407877452,1772869952606,-400.0,0.00047258,30]
[407877453,1772869952632,-483.13915848,0.00047258,30]
[407877454,1772869952659,-7815.71985523,0.00047258,60]
[407877455,1772869952686,-1016.45,0.00047258,120]
[407877456,1772869952712,-4670.85577981,0.00047258,120]
[407877457,1772869952739,-1399.95886972,0.00047258,120]
[407877458,1772869952765,-25000.0,0.00047258,120]
[407877459,1772869952792,-5000.0,0.00047258,30]
[407877460,1772869952819,-741.305594,0.00047258,120]
[407877461,1772869952847,-5000.0,0.00047258,60]
[407877462,1772869952872,-5059.0,0.00047258,90]
[407877463,1772869952899,-5000.0,0.00047258,120]
[407877464,1772869952923,-5000.0,0.00047258,90]
[407877465,1772869952948,-7000.0,0.00047258,60]
[407877466,1772869952973,-200000.0,0.00047258,30]
[407877467,1772869953014,-181.95,0.00047258,30]
[407877468,1772869953043,-181.92,0.00047258,30]
[407877469,1772869953069,-632.72,0.00047258,30]
[407877470,1772869953095,-190.94,0.00047258,30]
[407877471,1772869953122,-565.24,0.00047258,30]
[407877472,1772869953148,-632.72,0.00047258,30]
[407877473,1772869953176,-563.11,0.00047258,30]
[407877474,1772869953204,-2514.63,0.00047258,120]
[407877475,1772869953231,-181.95,0.00047258,30]
[407877476,1772869953257,-474.0,0.00047258,30]
[407877477,1772869953284,-565.24,0.00047258,30]
[407877478,1772869953313,-563.11,0.00047258,30]
[407877479,1772869953339,-202.51,0.00047258,30]
[407877480,1772869953366,-563.11,0.00047258,30]
[407877481,1772869953401,-563.02,0.00047258,30]
[407877482,1772869953438,-181.92,0.00047258,30]
[407877483,1772869953464,-181.95,0.00047258,30]
[407877484,1772869953490,-761.45,0.00047258,30]
[407877485,1772869953523,-473.92,0.00047258,30]
[407877486,1772869953549,-181.95,0.00047258,30]
[407877487,1772869953574,-632.72,0.00047258,30]
[407877488,1772869953600,-571.63,0.00047258,30]
[407877489,1772869953626,-565.24,0.00047258,30]
[407877490,1772869953658,-473.92,0.00047258,30]
[407877491,1772869953685,-181.92,0.00047258,30]
[407877492,1772869953710,-632.73,0.00047258,30]
[407877493,1772869953736,-562.93,0.00047258,30]
[407877494,1772869953762,-565.24,0.00047258,30]
[407877495,1772869953788,-474.0,0.00047258,30]
[407877496,1772869953819,-632.83,0.00047258,30]
[407877497,1772869953854,-563.2,0.00047258,30]
[407877498,1772869953880,-202.51,0.00047258,30]
[407877499,1772869953911,-632.72,0.00047258,30]
[407877500,1772869953937,-565.24,0.00047258,30]
[407877501,1772869953966,-181.95,0.00047258,30]
[407877502,1772869953992,-632.83,0.00047258,30]
[407877503,1772869954017,-202.51,0.00047258,30]
[407877504,1772869954043,-606.06,0.00047258,30]
[407877505,1772869954069,-915.44077055,0.00047258,120]
[407877506,1772869954095,-181.98,0.00047258,30]
[407877507,1772869954121,-151.6,0.00047258,30]
[407877508,1772869954147,-151.0,0.00047258,30]
[407877509,1772869954173,-632.72,0.00047258,30]
[407877510,1772869954199,-151.0,0.00047258,30]
[407877511,1772869954226,-181.95,0.00047258,30]
[407877512,1772869954555,-474.0,0.00047258,30]
[407877513,1772869954582,-565.24,0.00047258,30]
[407877514,1772869954620,-202.51,0.00047258,30]
[407877515,1772869954647,-151.0,0.00047258,30]
[407877516,1772869954674,-563.02,0.00047258,30]
[407877517,1772869954700,-298.0,0.00047258,30]
[407877518,1772869954725,-294.0,0.00047258,30]
[407877519,1772869954751,-565.24,0.00047258,30]
[407877520,1772869954777,-632.72,0.00047258,30]
[407877521,1772869954801,-151.0,0.00047258,30]
[407877522,1772869954826,-181.95,0.00047258,30]
[407877523,1772869954851,-151.0,0.00047258,30]
[407877524,1772869954875,-563.2,0.00047258,30]
[407877525,1772869954900,-474.08,0.00047258,30]
[407877526,1772869954924,-151.0,0.00047258,30]
[407877527,1772869954948,-202.51,0.00047258,30]
[407877528,1772869954973,-565.24,0.00047258,30]
[407877529,1772869954998,-202.51,0.00047258,30]
[407877530,1772869955022,-474.0,0.00047258,30]
[407877531,1772869955049,-632.72,0.00047258,30]
[407877532,1772869955074,-181.95,0.00047258,30]
[407877533,1772869955099,-563.11,0.00047258,30]
[407877534,1772869955124,-298.0,0.00047258,30]
[407877535,1772869955149,-151.0,0.00047258,30]
[407877536,1772869955181,-151.0,0.00047258,30]
[407877537,1772869955213,-151.0,0.00047258,30]
[407877538,1772869955242,-151.0,0.00047258,30]
[407877539,1772869955268,-151.0,0.00047258,30]
[407877540,1772869955294,-300.0,0.00047258,30]
[407877541,1772869955320,-202.51,0.00047258,30]
[407877542,1772869955348,-474.08,0.00047258,30]
[407877543,1772869955373,-632.72,0.00047258,30]
[407877544,1772869955412,-565.22,0.00047258,30]
[407877545,1772869955440,-181.95,0.00047258,30]
[407877546,1772869955465,-151.0,0.00047258,30]
[407877547,1772869955491,-181.95,0.00047258,30]
[407877548,1772869955522,-151.0,0.00047258,30]
[407877549,1772869955565,-565.26,0.00047258,30]
[407877550,1772869955595,-473.92,0.00047258,30]
[407877551,1772869955623,-151.0,0.00047258,30]
[407877552,1772869955649,-202.51,0.00047258,30]
[407877553,1772869955677,-632.72,0.00047258,30]
[407877554,1772869955703,-563.11,0.00047258,30]
[407877555,1772869955730,-151.0,0.00047258,30]
[407877556,1772869955757,-151.0,0.00047258,30]